[Event "Early-Titled-Tuesday-Blitz-January-30-2024"]
[Site "Chess.com"]
[Date "2024.01.30"]
[Round "1"]
[White "Dinamo3"]
[Black "MikaelyanArman"]
[Result "0-1"]
[WhiteElo "2464"]
[BlackElo "2830"]
[TimeControl "180+1"]
[EndTime "8:06:42 PST"]
[Termination "MikaelyanArman won on time"]

1. c4 {[%clk 0:03:00.9]} 1... Nf6 {[%clk 0:02:58.5]} 2. g3 {[%clk 0:02:59]} 2...
g6 {[%clk 0:02:57.8]} 3. Bg2 {[%clk 0:02:59.1]} 3... Bg7 {[%clk 0:02:58.5]} 4.
Nc3 {[%clk 0:02:59.3]} 4... O-O {[%clk 0:02:59.1]} 5. e4 {[%clk 0:02:59.6]} 5...
d6 {[%clk 0:02:59.6]} 6. Nge2 {[%clk 0:03:00]} 6... c5 {[%clk 0:02:58.9]} 7. O-O
{[%clk 0:03:00.3]} 7... Nc6 {[%clk 0:02:59.1]} 8. d3 {[%clk 0:03:00.6]} 8... Bg4
{[%clk 0:02:59.1]} 9. f3 {[%clk 0:02:57.8]} 9... Bd7 {[%clk 0:02:59]} 10. Be3
{[%clk 0:02:57.8]} 10... a6 {[%clk 0:02:50.9]} 11. Qd2 {[%clk 0:02:48.7]} 11...
Rb8 {[%clk 0:02:39]} 12. d4 {[%clk 0:02:27.2]} 12... cxd4 {[%clk 0:02:35.9]} 13.
Nxd4 {[%clk 0:02:28.1]} 13... Nxd4 {[%clk 0:02:31.6]} 14. Bxd4 {[%clk 0:02:29]}
14... b5 {[%clk 0:02:30.8]} 15. cxb5 {[%clk 0:02:00.8]} 15... axb5 {[%clk
0:02:31.7]} 16. e5 {[%clk 0:01:39.4]} 16... dxe5 {[%clk 0:02:28.8]} 17. Bxe5
{[%clk 0:01:39.8]} 17... b4 {[%clk 0:02:13.7]} 18. Ne2 {[%clk 0:01:27.4]} 18...
Bb5 {[%clk 0:01:54.6]} 19. Rfd1 {[%clk 0:00:17.4]} 19... Qb6+ {[%clk 0:01:47.4]}
20. Bd4 {[%clk 0:00:16.1]} 20... Qa6 {[%clk 0:01:45.8]} 21. Nf4 {[%clk
0:00:15.4]} 21... Rfd8 {[%clk 0:00:56.6]} 22. Qe3 {[%clk 0:00:14.7]} 22... Rd7
{[%clk 0:00:52]} 23. Be5 {[%clk 0:00:12.2]} 23... Rbd8 {[%clk 0:00:49.3]} 24.
Rxd7 {[%clk 0:00:12.4]} 24... Rxd7 {[%clk 0:00:48.1]} 25. h3 {[%clk 0:00:10.2]}
25... g5 {[%clk 0:00:40.1]} 26. Bxf6 {[%clk 0:00:05.1]} 26... Qxf6 {[%clk
0:00:41]} 27. Nh5 {[%clk 0:00:05.4]} 27... Qd4 {[%clk 0:00:36.7]} 28. Kf2 {[%clk
0:00:03.5]} 28... Qxb2+ {[%clk 0:00:35.1]} 0-1

[Event "Early-Titled-Tuesday-Blitz-January-30-2024"]
[Site "Chess.com"]
[Date "2024.01.30"]
[Round "1"]
[White "viktorgen2021"]
[Black "ricaurtelopezj1955"]
[Result "1-0"]
[WhiteElo "2572"]
[BlackElo "2131"]
[TimeControl "180+1"]
[EndTime "8:06:43 PST"]
[Termination "viktorgen2021 won on time"]

1. d4 {[%clk 0:02:57.5]} 1... d5 {[%clk 0:02:52.4]} 2. c4 {[%clk 0:02:57]} 2...
e6 {[%clk 0:02:50.4]} 3. Nf3 {[%clk 0:02:56.6]} 3... Be7 {[%clk 0:02:46.2]} 4.
g3 {[%clk 0:02:55.9]} 4... f5 {[%clk 0:02:41.6]} 5. Bg2 {[%clk 0:02:55.5]} 5...
Nf6 {[%clk 0:02:40.7]} 6. O-O {[%clk 0:02:54.5]} 6... O-O {[%clk 0:02:38.5]} 7.
b3 {[%clk 0:02:54.1]} 7... c6 {[%clk 0:02:36.1]} 8. Ba3 {[%clk 0:02:53.6]} 8...
Ne4 {[%clk 0:02:32.3]} 9. Qc2 {[%clk 0:02:50.4]} 9... Nd7 {[%clk 0:02:28.5]} 10.
Bxe7 {[%clk 0:02:48]} 10... Qxe7 {[%clk 0:02:27.3]} 11. Nc3 {[%clk 0:02:48.9]}
11... b6 {[%clk 0:02:17.5]} 12. Rfd1 {[%clk 0:02:33.5]} 12... Ba6 {[%clk
0:02:13.7]} 13. Rac1 {[%clk 0:02:33.3]} 13... Rac8 {[%clk 0:02:11.9]} 14. e3
{[%clk 0:02:29.8]} 14... Kh8 {[%clk 0:02:05.3]} 15. Ne1 {[%clk 0:02:15]} 15...
Nd6 {[%clk 0:01:58.9]} 16. cxd5 {[%clk 0:02:09.6]} 16... cxd5 {[%clk 0:01:44.1]}
17. Qb2 {[%clk 0:02:08.3]} 17... Ne4 {[%clk 0:01:23.2]} 18. b4 {[%clk
0:01:55.7]} 18... Bc4 {[%clk 0:01:18.9]} 19. a3 {[%clk 0:01:52]} 19... Rc7
{[%clk 0:01:02.5]} 20. Nb1 {[%clk 0:01:42.1]} 20... Rfc8 {[%clk 0:01:00.1]} 21.
Nd2 {[%clk 0:01:42]} 21... b5 {[%clk 0:00:31.3]} 22. f3 {[%clk 0:01:26.5]} 22...
Nd6 {[%clk 0:00:21.7]} 23. Kf2 {[%clk 0:01:10.2]} 23... Nb6 {[%clk 0:00:20.4]}
24. Nb3 {[%clk 0:01:03.4]} 24... Na4 {[%clk 0:00:15.2]} 25. Qb1 {[%clk
0:01:03.5]} 25... Bxb3 {[%clk 0:00:11.7]} 26. Rxc7 {[%clk 0:01:02.9]} 26... Qxc7
{[%clk 0:00:10.7]} 27. Qxb3 {[%clk 0:01:02.7]} 27... Qc3 {[%clk 0:00:10]} 28.
Qxc3 {[%clk 0:00:51.8]} 28... Rxc3 {[%clk 0:00:08.5]} 29. Rd3 {[%clk 0:00:51.8]}
29... Rc1 {[%clk 0:00:06.2]} 30. Bf1 {[%clk 0:00:43.7]} 30... Kg8 {[%clk
0:00:02.4]} 31. Rb3 {[%clk 0:00:43.6]} 1-0

[Event "Early-Titled-Tuesday-Blitz-January-30-2024"]
[Site "Chess.com"]
[Date "2024.01.30"]
[Round "1"]
[White "Sina_Movahed"]
[Black "vishwa_vijeta"]
[Result "1-0"]
[WhiteElo "3030"]
[BlackElo "2534"]
[TimeControl "180+1"]
[EndTime "8:06:46 PST"]
[Termination "Sina_Movahed won by resignation"]

1. e4 {[%clk 0:03:00.9]} 1... c5 {[%clk 0:02:57.2]} 2. d4 {[%clk 0:02:59.9]}
2... cxd4 {[%clk 0:02:49.3]} 3. Nf3 {[%clk 0:03:00.5]} 3... d6 {[%clk
0:02:43.1]} 4. Nxd4 {[%clk 0:02:59.8]} 4... Nf6 {[%clk 0:02:42.4]} 5. Nc3 {[%clk
0:03:00.4]} 5... g6 {[%clk 0:02:42.3]} 6. Be3 {[%clk 0:02:59.7]} 6... Bg7 {[%clk
0:02:41.9]} 7. f3 {[%clk 0:03:00.2]} 7... O-O {[%clk 0:02:41.1]} 8. Qd2 {[%clk
0:03:00.5]} 8... Nc6 {[%clk 0:02:33.4]} 9. O-O-O {[%clk 0:02:58.5]} 9... d5
{[%clk 0:02:32.7]} 10. exd5 {[%clk 0:02:58.4]} 10... Nxd5 {[%clk 0:02:31.9]} 11.
Nxc6 {[%clk 0:02:58.5]} 11... bxc6 {[%clk 0:02:32.8]} 12. Bd4 {[%clk 0:02:58.6]}
12... e5 {[%clk 0:02:32.5]} 13. Bc5 {[%clk 0:02:58.9]} 13... Re8 {[%clk
0:02:33]} 14. Ne4 {[%clk 0:02:57.7]} 14... Qc7 {[%clk 0:02:31.8]} 15. h4 {[%clk
0:02:53.9]} 15... f5 {[%clk 0:02:27]} 16. Nd6 {[%clk 0:02:47.6]} 16... Rd8
{[%clk 0:02:26.5]} 17. Nxc8 {[%clk 0:02:47.6]} 17... Raxc8 {[%clk 0:02:24.2]}
18. Bc4 {[%clk 0:02:43.9]} 18... h5 {[%clk 0:02:22.6]} 19. g4 {[%clk 0:02:34.8]}
19... Kh7 {[%clk 0:02:21.8]} 20. Kb1 {[%clk 0:02:08.5]} 20... e4 {[%clk
0:02:14.1]} 21. Qc1 {[%clk 0:01:53.6]} 21... Qa5 {[%clk 0:01:53.3]} 22. Bd4
{[%clk 0:01:32.7]} 22... Bxd4 {[%clk 0:01:44.6]} 23. Rxd4 {[%clk 0:01:33.6]}
23... Qc5 {[%clk 0:01:21.7]} 24. Rhd1 {[%clk 0:01:27.1]} 24... exf3 {[%clk
0:01:08.8]} 25. gxf5 {[%clk 0:01:23.5]} 25... gxf5 {[%clk 0:01:06.4]} 26. Qg5
{[%clk 0:01:14.8]} 26... f2 {[%clk 0:00:57.4]} 27. Qxf5+ {[%clk 0:01:09.4]}
27... Kh8 {[%clk 0:00:55]} 28. Qxh5+ {[%clk 0:01:09.3]} 28... Kg7 {[%clk
0:00:54]} 29. Rg4+ {[%clk 0:01:09.2]} 29... Kf6 {[%clk 0:00:46.4]} 30. Rg6+
{[%clk 0:01:03.9]} 30... Ke7 {[%clk 0:00:38.4]} 31. Qh7+ {[%clk 0:01:03.9]}
31... Ke8 {[%clk 0:00:37.7]} 32. Rg8+ {[%clk 0:01:04.8]} 32... Qf8 {[%clk
0:00:37.5]} 33. Rxf8+ {[%clk 0:01:04.5]} 33... Kxf8 {[%clk 0:00:38.4]} 34. Rf1
{[%clk 0:01:05.1]} 34... Nf6 {[%clk 0:00:31.9]} 35. Qh6+ {[%clk 0:01:03.3]}
35... Ke7 {[%clk 0:00:31.5]} 36. Qg7+ {[%clk 0:01:03.6]} 36... Kd6 {[%clk
0:00:30.6]} 37. Qxf6+ {[%clk 0:01:03.7]} 37... Kd7 {[%clk 0:00:30.7]} 38. Rxf2
{[%clk 0:01:02.3]} 38... Kc7 {[%clk 0:00:31.4]} 39. b3 {[%clk 0:01:02.1]} 39...
Rd6 {[%clk 0:00:30.4]} 40. Qg7+ {[%clk 0:01:01.5]} 40... Kb8 {[%clk 0:00:29.9]}
41. Rf7 {[%clk 0:01:01.6]} 41... Rd1+ {[%clk 0:00:28]} 42. Kb2 {[%clk
0:01:01.3]} 42... Rb1+ {[%clk 0:00:27.1]} 43. Kxb1 {[%clk 0:01:01.5]} 43... Rc7
{[%clk 0:00:27.8]} 1-0

[Event "Early-Titled-Tuesday-Blitz-January-30-2024"]
[Site "Chess.com"]
[Date "2024.01.30"]
[Round "1"]
[White "ChainedDowntohell"]
[Black "familijatop71"]
[Result "1-0"]
[WhiteElo "2609"]
[BlackElo "2263"]
[TimeControl "180+1"]
[EndTime "8:06:46 PST"]
[Termination "ChainedDowntohell won by resignation"]

1. d4 {[%clk 0:02:37.9]} 1... Nf6 {[%clk 0:02:59.4]} 2. Nf3 {[%clk 0:02:37.8]}
2... g6 {[%clk 0:02:58.2]} 3. Bg5 {[%clk 0:02:25.6]} 3... Bg7 {[%clk 0:02:57.6]}
4. c3 {[%clk 0:02:24.8]} 4... h6 {[%clk 0:02:49.3]} 5. Bh4 {[%clk 0:02:20.1]}
5... d6 {[%clk 0:02:47.9]} 6. Nbd2 {[%clk 0:02:19]} 6... O-O {[%clk 0:02:36.9]}
7. e3 {[%clk 0:02:14]} 7... c5 {[%clk 0:02:30.5]} 8. Be2 {[%clk 0:02:07]} 8...
cxd4 {[%clk 0:02:28.3]} 9. exd4 {[%clk 0:02:05.6]} 9... Bf5 {[%clk 0:02:20]} 10.
O-O {[%clk 0:02:05]} 10... g5 {[%clk 0:02:08.4]} 11. Bg3 {[%clk 0:01:58.9]}
11... Nh5 {[%clk 0:02:00.6]} 12. Re1 {[%clk 0:01:53.8]} 12... Bg6 {[%clk
0:01:53.9]} 13. Qb3 {[%clk 0:01:49]} 13... Qc7 {[%clk 0:01:44.4]} 14. Nc4 {[%clk
0:01:41.1]} 14... Nxg3 {[%clk 0:01:41.4]} 15. hxg3 {[%clk 0:01:40.9]} 15... Nd7
{[%clk 0:01:25.5]} 16. Bf1 {[%clk 0:01:36.5]} 16... Nb6 {[%clk 0:01:22.7]} 17.
Nxb6 {[%clk 0:01:32.9]} 17... Qxb6 {[%clk 0:01:22.8]} 18. Qxb6 {[%clk
0:01:32.2]} 18... axb6 {[%clk 0:01:23.3]} 19. a3 {[%clk 0:01:27]} 19... e6
{[%clk 0:01:17.3]} 20. Rad1 {[%clk 0:01:21.4]} 20... Bc2 {[%clk 0:01:15.5]} 21.
Rd2 {[%clk 0:01:20.8]} 21... Bb3 {[%clk 0:01:14.7]} 22. Bd3 {[%clk 0:01:17.2]}
22... d5 {[%clk 0:01:10.3]} 23. Ne5 {[%clk 0:01:16.5]} 23... Bxe5 {[%clk
0:01:08.9]} 24. Rxe5 {[%clk 0:01:17.4]} 24... Kg7 {[%clk 0:01:05.8]} 25. f4
{[%clk 0:01:17.5]} 25... gxf4 {[%clk 0:00:53.6]} 26. gxf4 {[%clk 0:01:18.4]}
26... Kf6 {[%clk 0:00:50.9]} 27. g4 {[%clk 0:01:17.5]} 27... Rg8 {[%clk
0:00:50.7]} 28. Rg2 {[%clk 0:01:17.4]} 28... Bd1 {[%clk 0:00:48]} 29. g5+ {[%clk
0:01:15]} 29... hxg5 {[%clk 0:00:46.1]} 30. fxg5+ {[%clk 0:01:15.2]} 30... Ke7
{[%clk 0:00:45.9]} 31. g6 {[%clk 0:01:05.4]} 31... f6 {[%clk 0:00:44.8]} 32. Re1
{[%clk 0:01:03]} 32... Bh5 {[%clk 0:00:45.1]} 33. Bf5 {[%clk 0:01:00.7]} 33...
Bf3 {[%clk 0:00:33.4]} 34. Rxe6+ {[%clk 0:00:56.1]} 34... Kd8 {[%clk 0:00:32.2]}
35. Rg3 {[%clk 0:00:54.9]} 35... Bd1 {[%clk 0:00:26.8]} 36. g7 {[%clk 0:00:52]}
36... Bb3 {[%clk 0:00:24.8]} 37. Bh7 {[%clk 0:00:46.8]} 37... Kc7 {[%clk
0:00:23.1]} 38. Rxf6 {[%clk 0:00:43.1]} 38... Rae8 {[%clk 0:00:18]} 39. Bxg8
{[%clk 0:00:43.2]} 1-0

[Event "Early-Titled-Tuesday-Blitz-January-30-2024"]
[Site "Chess.com"]
[Date "2024.01.30"]
[Round "1"]
[White "ahkashefi2800"]
[Black "nihalsarin"]
[Result "0-1"]
[WhiteElo "2549"]
[BlackElo "3179"]
[TimeControl "180+1"]
[EndTime "8:06:47 PST"]
[Termination "nihalsarin won on time"]

1. Nf3 {[%clk 0:02:54.9]} 1... c5 {[%clk 0:02:55.2]} 2. g3 {[%clk 0:02:54.3]}
2... Nc6 {[%clk 0:02:53.8]} 3. Bg2 {[%clk 0:02:51]} 3... e5 {[%clk 0:02:43.1]}
4. d3 {[%clk 0:02:46.7]} 4... d5 {[%clk 0:02:36]} 5. O-O {[%clk 0:02:45.7]} 5...
Bd6 {[%clk 0:02:29]} 6. e4 {[%clk 0:02:43.5]} 6... d4 {[%clk 0:02:27.9]} 7. a4
{[%clk 0:02:38.6]} 7... Nge7 {[%clk 0:02:28.1]} 8. Nfd2 {[%clk 0:02:37.6]} 8...
Bc7 {[%clk 0:02:25.7]} 9. f4 {[%clk 0:02:36.1]} 9... exf4 {[%clk 0:02:24]} 10.
gxf4 {[%clk 0:02:34.6]} 10... Ng6 {[%clk 0:02:24.9]} 11. Nc4 {[%clk 0:02:29.7]}
11... O-O {[%clk 0:02:18.5]} 12. Qh5 {[%clk 0:02:26.8]} 12... Qh4 {[%clk
0:02:16.4]} 13. Qxh4 {[%clk 0:02:21]} 13... Nxh4 {[%clk 0:02:17.3]} 14. Nbd2
{[%clk 0:02:20]} 14... Nxg2 {[%clk 0:02:14.6]} 15. Kxg2 {[%clk 0:02:20.9]} 15...
Nb4 {[%clk 0:02:15.3]} 16. Na3 {[%clk 0:02:17.1]} 16... Bd7 {[%clk 0:02:15.4]}
17. b3 {[%clk 0:02:12.4]} 17... f5 {[%clk 0:02:12.2]} 18. e5 {[%clk 0:01:42.1]}
18... Bc6+ {[%clk 0:02:11.3]} 19. Nf3 {[%clk 0:01:34.3]} 19... Rae8 {[%clk
0:02:10.6]} 20. Bd2 {[%clk 0:01:33.8]} 20... Nd5 {[%clk 0:01:58.8]} 21. Rae1
{[%clk 0:01:31.5]} 21... g5 {[%clk 0:01:54.3]} 22. fxg5 {[%clk 0:01:26.4]} 22...
f4 {[%clk 0:01:55.2]} 23. Kf2 {[%clk 0:00:56]} 23... Ne3 {[%clk 0:01:54.5]} 24.
Rg1 {[%clk 0:00:56.4]} 24... Bxe5 {[%clk 0:01:53.5]} 25. Nxe5 {[%clk 0:00:38.6]}
25... Rxe5 {[%clk 0:01:53.3]} 26. h4 {[%clk 0:00:37.6]} 26... Kg7 {[%clk
0:01:32.5]} 27. c3 {[%clk 0:00:36.7]} 27... Kg6 {[%clk 0:01:29.8]} 28. cxd4
{[%clk 0:00:36.1]} 28... cxd4 {[%clk 0:01:30.7]} 29. Nc4 {[%clk 0:00:35.9]}
29... Re6 {[%clk 0:01:19.5]} 30. Bb4 {[%clk 0:00:35.6]} 30... Rd8 {[%clk
0:01:18.3]} 31. Re2 {[%clk 0:00:13.2]} 31... Kh5 {[%clk 0:01:17.5]} 32. Nd2
{[%clk 0:00:03.6]} 32... Rde8 {[%clk 0:01:12.7]} 33. Ree1 {[%clk 0:00:01.8]}
33... Ng4+ {[%clk 0:01:11.3]} 34. Rxg4 {[%clk 0:00:01.6]} 34... Rxe1 {[%clk
0:01:12.2]} 35. Ne4 {[%clk 0:00:01.7]} 35... R1xe4 {[%clk 0:01:10.4]} 36. dxe4
{[%clk 0:00:01.5]} 36... Kxg4 {[%clk 0:01:10.4]} 37. g6 {[%clk 0:00:02.1]} 37...
hxg6 {[%clk 0:01:09.5]} 0-1

[Event "Early-Titled-Tuesday-Blitz-January-30-2024"]
[Site "Chess.com"]
[Date "2024.01.30"]
[Round "1"]
[White "DrCeltic"]
[Black "stratacticos"]
[Result "1-0"]
[WhiteElo "2565"]
[BlackElo "2038"]
[TimeControl "180+1"]
[EndTime "8:06:47 PST"]
[Termination "DrCeltic won on time"]

1. e4 {[%clk 0:02:57.5]} 1... c5 {[%clk 0:02:58.5]} 2. Nf3 {[%clk 0:02:57.7]}
2... Nc6 {[%clk 0:02:57.7]} 3. d4 {[%clk 0:02:58.2]} 3... cxd4 {[%clk
0:02:57.3]} 4. Nxd4 {[%clk 0:02:59.1]} 4... Nf6 {[%clk 0:02:56.2]} 5. Nc3 {[%clk
0:02:59.4]} 5... e5 {[%clk 0:02:55.8]} 6. Ndb5 {[%clk 0:02:59.7]} 6... d6 {[%clk
0:02:54.1]} 7. Bg5 {[%clk 0:03:00.1]} 7... a6 {[%clk 0:02:51.1]} 8. Na3 {[%clk
0:03:00.3]} 8... b5 {[%clk 0:02:49.5]} 9. Nd5 {[%clk 0:03:00.7]} 9... Be7 {[%clk
0:02:43.5]} 10. Bxf6 {[%clk 0:03:00.9]} 10... Bxf6 {[%clk 0:02:42.4]} 11. c3
{[%clk 0:03:01.8]} 11... Bg5 {[%clk 0:02:39.8]} 12. Nc2 {[%clk 0:03:01.8]} 12...
O-O {[%clk 0:02:38.2]} 13. Be2 {[%clk 0:03:02.1]} 13... Ne7 {[%clk 0:02:36.3]}
14. Ncb4 {[%clk 0:03:02.1]} 14... Bb7 {[%clk 0:02:32]} 15. Qd3 {[%clk
0:03:01.2]} 15... Ng6 {[%clk 0:02:14.5]} 16. g3 {[%clk 0:02:55]} 16... Kh8
{[%clk 0:02:11.2]} 17. h4 {[%clk 0:02:54]} 17... Bh6 {[%clk 0:02:07.4]} 18. Bg4
{[%clk 0:02:50.5]} 18... a5 {[%clk 0:02:01.9]} 19. Nc2 {[%clk 0:02:50.5]} 19...
Bxd5 {[%clk 0:01:55.2]} 20. Qxd5 {[%clk 0:02:49.3]} 20... Ne7 {[%clk 0:01:54.6]}
21. Qd3 {[%clk 0:02:39]} 21... d5 {[%clk 0:01:53.4]} 22. Rd1 {[%clk 0:02:35.3]}
22... dxe4 {[%clk 0:01:45]} 23. Qxb5 {[%clk 0:02:20.5]} 23... Qb8 {[%clk
0:01:23.2]} 24. Be2 {[%clk 0:02:10.5]} 24... f5 {[%clk 0:00:56.2]} 25. O-O
{[%clk 0:02:00.1]} 25... a4 {[%clk 0:00:50.8]} 26. Rd7 {[%clk 0:01:46.6]} 26...
Qxb5 {[%clk 0:00:37.9]} 27. Bxb5 {[%clk 0:01:46.2]} 27... Ng8 {[%clk 0:00:19.4]}
28. c4 {[%clk 0:01:25.4]} 28... Nf6 {[%clk 0:00:13.6]} 29. Re7 {[%clk
0:01:24.8]} 29... Ng4 {[%clk 0:00:08.5]} 30. Re1 {[%clk 0:01:11.8]} 30... Rfd8
{[%clk 0:00:07.1]} 31. Rd7 {[%clk 0:01:03.3]} 31... Rxd7 {[%clk 0:00:06]} 32.
Bxd7 {[%clk 0:01:04.2]} 32... g6 {[%clk 0:00:06.1]} 33. c5 {[%clk 0:01:01.8]}
33... a3 {[%clk 0:00:04.4]} 34. bxa3 {[%clk 0:00:56.2]} 1-0

[Event "Early-Titled-Tuesday-Blitz-January-30-2024"]
[Site "Chess.com"]
[Date "2024.01.30"]
[Round "1"]
[White "LyonBeast"]
[Black "ajkom197"]
[Result "1-0"]
[WhiteElo "3158"]
[BlackElo "2547"]
[TimeControl "180+1"]
[EndTime "8:06:50 PST"]
[Termination "LyonBeast won by resignation"]

1. e4 {[%clk 0:03:00.9]} 1... c6 {[%clk 0:02:59.7]} 2. Nc3 {[%clk 0:02:58.3]}
2... d5 {[%clk 0:02:59.9]} 3. d4 {[%clk 0:02:58.6]} 3... dxe4 {[%clk 0:02:59.8]}
4. Nxe4 {[%clk 0:02:59.5]} 4... Nf6 {[%clk 0:03:00.2]} 5. Nxf6+ {[%clk
0:02:58.4]} 5... exf6 {[%clk 0:03:00.4]} 6. Bc4 {[%clk 0:02:58.8]} 6... Na6
{[%clk 0:03:00.2]} 7. Ne2 {[%clk 0:02:48.7]} 7... Bd6 {[%clk 0:02:57.5]} 8. O-O
{[%clk 0:02:45.6]} 8... Nc7 {[%clk 0:02:55.9]} 9. Nf4 {[%clk 0:02:41.5]} 9...
O-O {[%clk 0:02:54.5]} 10. Re1 {[%clk 0:02:41.9]} 10... b5 {[%clk 0:02:45.9]}
11. Bb3 {[%clk 0:02:29.3]} 11... a5 {[%clk 0:02:43.7]} 12. a4 {[%clk 0:02:29]}
12... b4 {[%clk 0:02:32.5]} 13. Qh5 {[%clk 0:02:21.9]} 13... h6 {[%clk
0:02:13.3]} 14. Bd2 {[%clk 0:01:37.6]} 14... Bxf4 {[%clk 0:01:52]} 15. Bxf4
{[%clk 0:01:38.5]} 15... Nd5 {[%clk 0:01:51.9]} 16. Bd2 {[%clk 0:01:30.8]} 16...
Be6 {[%clk 0:01:49.9]} 17. Re4 {[%clk 0:01:19.4]} 17... f5 {[%clk 0:01:35.3]}
18. Rxe6 {[%clk 0:01:19.5]} 18... fxe6 {[%clk 0:01:33.2]} 19. Re1 {[%clk
0:01:20.2]} 19... Qf6 {[%clk 0:01:26.2]} 20. c3 {[%clk 0:01:18.1]} 20... bxc3
{[%clk 0:01:24.2]} 21. bxc3 {[%clk 0:01:19]} 21... Rae8 {[%clk 0:01:21.7]} 22.
Qe2 {[%clk 0:01:16.1]} 22... f4 {[%clk 0:01:19.6]} 23. Qe4 {[%clk 0:01:07.6]}
23... f3 {[%clk 0:01:15.9]} 24. Bc2 {[%clk 0:01:00.2]} 24... fxg2 {[%clk
0:00:51.7]} 25. Qh7+ {[%clk 0:01:00.1]} 25... Kf7 {[%clk 0:00:52]} 26. c4 {[%clk
0:01:00.3]} 26... Ke7 {[%clk 0:00:38.3]} 27. Re2 {[%clk 0:00:53.1]} 27... Nf4
{[%clk 0:00:22.8]} 28. Bxf4 {[%clk 0:00:50.6]} 28... Qxf4 {[%clk 0:00:23.7]} 29.
d5 {[%clk 0:00:41.8]} 29... Qxc4 {[%clk 0:00:18.7]} 30. Qxg7+ {[%clk 0:00:36.1]}
30... Kd8 {[%clk 0:00:18]} 31. dxe6 {[%clk 0:00:30.7]} 31... Qd5 {[%clk
0:00:10.8]} 32. e7+ {[%clk 0:00:31]} 1-0

[Event "Early-Titled-Tuesday-Blitz-January-30-2024"]
[Site "Chess.com"]
[Date "2024.01.30"]
[Round "1"]
[White "Jumbo"]
[Black "Irishchessman16"]
[Result "1-0"]
[WhiteElo "2951"]
[BlackElo "2514"]
[TimeControl "180+1"]
[EndTime "8:06:51 PST"]
[Termination "Jumbo won by resignation"]

1. d4 {[%clk 0:03:00.9]} 1... Nf6 {[%clk 0:02:59]} 2. Nf3 {[%clk 0:03:01]} 2...
d5 {[%clk 0:02:58.3]} 3. Bf4 {[%clk 0:03:01.4]} 3... e6 {[%clk 0:02:56.9]} 4. e3
{[%clk 0:03:01.6]} 4... c5 {[%clk 0:02:56.6]} 5. Nbd2 {[%clk 0:02:56.7]} 5...
Qb6 {[%clk 0:02:56]} 6. Rb1 {[%clk 0:02:50.1]} 6... Bd6 {[%clk 0:02:55.8]} 7.
Bg3 {[%clk 0:02:46.2]} 7... Nbd7 {[%clk 0:02:40.9]} 8. c3 {[%clk 0:02:41]} 8...
Qc7 {[%clk 0:02:31.8]} 9. c4 {[%clk 0:02:23.6]} 9... O-O {[%clk 0:02:00.9]} 10.
cxd5 {[%clk 0:02:14.7]} 10... exd5 {[%clk 0:01:58.5]} 11. dxc5 {[%clk
0:01:57.2]} 11... Nxc5 {[%clk 0:01:59.1]} 12. Rc1 {[%clk 0:01:56.3]} 12... Bxg3
{[%clk 0:01:48.4]} 13. hxg3 {[%clk 0:01:57.2]} 13... Qb6 {[%clk 0:01:42.9]} 14.
Be2 {[%clk 0:01:45.6]} 14... Bf5 {[%clk 0:01:37.9]} 15. O-O {[%clk 0:01:30.9]}
15... Rac8 {[%clk 0:01:37.3]} 16. Nd4 {[%clk 0:01:27.6]} 16... Bd3 {[%clk
0:01:16.1]} 17. N2b3 {[%clk 0:01:14.2]} 17... Bxe2 {[%clk 0:01:11.4]} 18. Qxe2
{[%clk 0:01:15.1]} 18... Na4 {[%clk 0:01:04.3]} 19. Rc2 {[%clk 0:01:11.8]} 19...
Rxc2 {[%clk 0:00:56.6]} 20. Qxc2 {[%clk 0:01:12.7]} 20... Ng4 {[%clk 0:00:51.2]}
21. Rc1 {[%clk 0:00:51.1]} 21... Qh6 {[%clk 0:00:47.4]} 22. Nf3 {[%clk
0:00:51.5]} 22... Nb6 {[%clk 0:00:34.5]} 23. Qf5 {[%clk 0:00:49.8]} 23... Nf6
{[%clk 0:00:22]} 24. Rc7 {[%clk 0:00:47.3]} 24... Ne4 {[%clk 0:00:15.9]} 25.
Nbd4 {[%clk 0:00:39.8]} 25... Nc4 {[%clk 0:00:15.3]} 26. Qxd5 {[%clk 0:00:27.2]}
26... Nxf2 {[%clk 0:00:15.3]} 27. Qxc4 {[%clk 0:00:24.1]} 27... Qxe3 {[%clk
0:00:15.2]} 28. Qe2 {[%clk 0:00:24.6]} 28... Nh3+ {[%clk 0:00:13.3]} 29. Kh2
{[%clk 0:00:24.8]} 29... Qh6 {[%clk 0:00:13]} 30. gxh3 {[%clk 0:00:24.7]} 30...
Qd6 {[%clk 0:00:12.4]} 31. Rxb7 {[%clk 0:00:23.4]} 1-0